[Event "Czech Extraliga 2023-24"]
[Site "Czech Republic"]
[Date "2024.04.06"]
[Round "9.3"]
[White "Cernousek, Lukas"]
[Black "Petr, Martin"]
[Result "1-0"]
[ECO "C07"]
[WhiteElo "2440"]
[BlackElo "2474"]
[Annotator "TA"]
[PlyCount "117"]
[EventDate "2023.10.14"]
[EventCountry "CZE"]
[SourceTitle "playchess.com"]
[Source "ChessBase"]
[SourceQuality "1"]
[TimeControl "40/5400+30:1800+30"]

{[%evp 52,117,355,345,435,411,408,365,366,350,350,350,366,354,384,371,383,390,402,383,392,369,393,395,382,391,383,387,395,384,417,343,498,493,629,589,643,653,630,603,762,747,804,804,744,682,1761,1475,3909,2503,29953,1004,29955,6589,29967,29968,29969,29970,29972,29973,29973,29975,29978,29979,29979,29980,29980,29980]} 1. e4 {[%emt 0:00:03]} e6 {[%emt 0:00:23]} 2. d4 {[%emt 0:00:06]} d5 {[%emt 0:00:03]} 3. Nd2 {[%emt 0:00:07]} c5 {[%emt 0:00:44]} 4. Ngf3 {[%emt 0:00:07]} cxd4 {[%emt 0:02:29]} 5. Nxd4 {[%emt 0:00:05]} Nc6 {[%emt 0:00:03]} 6. Bb5 {[%emt 0:00:07]} Bd7 {[%emt 0:00:05]} 7. Nxc6 {[%emt 0:00:16]} bxc6 {[%emt 0:00:46]} 8. Bd3 {[%emt 0:00:06]} Bd6 {[%emt 0:00:07] C07: French Tarrasch: 3...c5, 4 Ngf3 and 4 exd5 Qxd5.} 9. Qe2 {[%emt 0:00:08]} Ne7 {[%emt 0:03:01]} 10. e5 {[%emt 0:00:10]} Bc7 {[%emt 0:00:17]} 11. O-O {[%emt 0:00:09]} c5 {[%emt 0:04:01]} 12. c4 {[%emt 0:01:47]} Bc6 {[%emt 0:01:29]} 13. Rd1 $146 {[%emt 0:00:34]} ({Predecessor:} 13. Nf3 dxc4 14. Bxc4 O-O 15. Be3 Bxf3 16. Qxf3 Bxe5 17. Bxc5 Qc7 18. Bxe7 Qxe7 19. Qe2 {0-1 Niemann,H (2687)-Carlsen,M (2864) Miami FTX Crypto Cup rapid 2022 (2.2)}) 13... d4 {[%emt 0:09:11]} 14. f4 {[%emt 0:21:56]} a5 {[%emt 0:05:33]} 15. Ne4 {[%emt 0:08:56]} Bxe4 {[%emt 0:00:19]} 16. Bxe4 {[%emt 0:17:10]} Rb8 {[%emt 0:00:09]} 17. Rd3 {[%emt 0:02:16]} h5 {[%emt 0:03:08]} 18. Ra3 {[%emt 0:11:33]} g6 {[%emt 0:17:22]} 19. Rb1 {[%emt 0:00:58]} Kd7 {[%emt 0:13:47]} 20. Bd2 {[%emt 0:12:33]} Nc6 {[%emt 0:00:06]} 21. Bxc6+ {[%emt 0:04:55]} Kxc6 {[%emt 0:00:03]} 22. Qd1 {[%emt 0:00:04]} Kb7 {[%emt 0:14:21]} 23. Qf3+ {[%emt 0:00:33]} Kc8 {[%emt 0:03:49]} 24. Qc6 {[%emt 0:00:07]} Rb7 {[%emt 0:01:19]} 25. Bxa5 {[%emt 0:09:16]} Kb8 {[%emt 0:00:05]} 26. Qxc5 {[%emt 0:02:38]} Bxa5 {[%emt 0:00:34]} 27. Rxa5 {[%emt 0:05:50]} (27. Qxa5 Qxa5 28. Rxa5 Rc8 $18) 27... d3 {[%emt 0:00:06]} 28. Ra6 {[%emt 0:00:22]} (28. b4 Qc7 29. Qxc7+ Rxc7 $16) 28... Qc7 {[%emt 0:03:33]} 29. Rc6 {[%emt 0:00:37]} Qe7 {[%emt 0:02:04]} 30. Qxe7 Rxe7 {[%emt 0:00:04]} 31. Rd6 {[%emt 0:00:54]} Ra7 {[%emt 0:01:23]} 32. Ra1 {[%emt 0:00:09]} (32. Rxd3 Rxa2 33. b3 Rf8 $18) 32... g5 {[%emt 0:01:33]} 33. Rxd3 {[%emt 0:01:33]} (33. fxg5 Ra5 34. Rxd3 Rxe5) 33... gxf4 {[%emt 0:00:06]} 34. b4 {[%emt 0:00:46]} h4 {[%emt 0:01:54]} 35. a3 {[%emt 0:00:30]} f6 {[%emt 0:03:46]} 36. Re1 {[%emt 0:00:32]} Rf7 {[%emt 0:01:09]} 37. Kf2 {[%emt 0:00:28]} Rg8 {[%emt 0:01:54]} 38. exf6 Rxf6 {[%emt 0:00:05]} 39. Re2 {[%emt 0:01:08]} Rfg6 {[%emt 0:03:44]} 40. Kf3 {[%emt 0:00:11]} e5 {[%emt 0:00:10]} 41. Rd5 {[%emt 0:08:25]} e4+ {[%emt 0:01:48]} (41... h3 $142) 42. Rxe4 $18 {[%emt 0:03:21]} (42. Kxf4 e3 43. h3 (43. Kxe3 Re8+ 44. Kf2 Rxe2+ 45. Kxe2 Rxg2+ 46. Kd3 Rxh2 $18) (43. Rxe3 Rg4+ 44. Kf3 Rxc4 $18) 43... Rxg2 $18) (42. Kxe4 Re6+ 43. Kf3 (43. Kxf4 $2 Rxe2 44. Rb5+ Kc8 $19) (43. Re5 $2 Rxe5+ 44. Kxe5 Re8+ 45. Kxf4 Rxe2 $19) 43... Rxe2 44. Kxe2 Rxg2+ 45. Kf3 Rc2 $18) 42... Rxg2 {[%emt 0:00:06]} 43. Rd8+ {[%emt 0:00:05]} (43. Rxf4 Rxh2 44. Rh5 Rh3+ 45. Ke4 Rxa3 46. Rfxh4 (46. Rhxh4 Ra4 $11) 46... Ra4 47. Rb5+ Kc7 48. Rh7+ Kc8 $18) 43... Rxd8 {[%emt 0:00:19]} 44. Kxg2 {[%emt 0:00:03]} Rd3 {[%emt 0:00:59]} 45. Rxf4 {[%emt 0:00:07]} h3+ {[%emt 0:00:07]} 46. Kf2 {[%emt 0:00:03]} Rxa3 {[%emt 0:00:05]} 47. Rf3 {[%emt 0:00:03]} Ra2+ {[%emt 0:00:57]} 48. Kg3 {[%emt 0:00:01]} Rc2 {[%emt 0:00:49]} 49. c5 {[%emt 0:00:19]} (49. Kxh3 Rxc4 50. b5 Rc8 $18) 49... Rb2 {[%emt 0:00:09]} 50. Kxh3 {[%emt 0:00:13]} (50. Rf4 Rb3+ 51. Kf2 (51. Kg4 Kc7 $18) 51... Rb2+ 52. Kg3 Rb3+ 53. Rf3 (53. Kg4 Kc7 $18) 53... Rxb4 54. Kxh3 Kc8 $18) 50... Rxb4 {[%emt 0:00:04]} 51. Rc3 {[%emt 0:00:08]} (51. Kg3 $142 Re4 52. Rf5 Kc7 53. h4 Kd7 54. Rf4 Re6 55. Rf7+ Kc6 56. Rf5) 51... Kc7 {[%emt 0:00:50]} 52. Kg3 {[%emt 0:00:33]} Rb1 {[%emt 0:01:26]} 53. h4 {[%emt 0:03:37]} Kc6 {[%emt 0:00:05]} 54. h5 {[%emt 0:00:08]} Rh1 {[%emt 0:00:42]} 55. Kg4 {[%emt 0:00:05]} Rg1+ {[%emt 0:00:08]} 56. Kh4 {[%emt 0:00:40]} Rh1+ {[%emt 0:00:35]} 57. Rh3 {[%emt 0:00:57]} Ra1 {[%emt 0:00:13]} 58. h6 {[%emt 0:00:07]} Kxc5 {[%emt 0:00:04]} 59. h7 {[%emt 0:00:08]} 1-0

[Event "Czech Extraliga 2023-24"]
[Site "Czech Republic"]
[Date "2024.04.06"]
[Round "9.3"]
[White "Stalmach, Richard"]
[Black "Jakubowski, Krzysztof"]
[Result "1-0"]
[ECO "E00"]
[WhiteElo "2433"]
[BlackElo "2462"]
[Annotator "TA"]
[PlyCount "92"]
[EventDate "2023.10.14"]
[EventCountry "CZE"]
[SourceTitle "playchess.com"]
[Source "ChessBase"]
[SourceQuality "1"]
[TimeControl "40/5400+30:1800+30"]

{[%evp 9,92,0,52,45,45,33,27,28,25,29,29,15,21,18,21,29,32,22,26,20,22,25,28,20,47,41,134,137,141,139,132,136,131,127,139,135,148,129,139,133,133,127,150,162,152,153,181,181,184,189,189,188,177,177,175,169,168,164,177,178,181,181,167,53,141,141,141,2,2,0,29954,29955,29953,29960,29961,29962,29964,29966,29967,29968,29967,29968,29968,29967,4631]} 1. d4 {[%emt 0:00:03]} Nf6 {[%emt 0:00:13]} 2. c4 {[%emt 0:00:06]} e6 {[%emt 0:00:06]} 3. g3 {[%emt 0:00:04]} Bb4+ {[%emt 0:02:40]} 4. Nd2 {[%emt 0:01:08]} c5 {[%emt 0:05:04]} 5. dxc5 {[%emt 0:03:58]} Na6 {[%emt 0:05:31]} (5... O-O $11) 6. Bg2 {[%emt 0:01:14]} Nxc5 {[%emt 0:00:35]} 7. Ngf3 {[%emt 0:05:43]} b6 {[%emt 0:01:36]} 8. a3 {[%emt 0:10:25] White has an edge.} Bxd2+ {[%emt 0:00:51]} 9. Nxd2 {[%emt 0:01:39]} Bb7 {[%emt 0:02:47]} 10. Bxb7 {[%emt 0:02:01]} Nxb7 {[%emt 0:00:06]} 11. O-O {[%emt 0:06:18]} O-O {[%emt 0:01:34]} 12. b4 {[%emt 0:00:31]} d5 {[%emt 0:12:29]} 13. Bb2 {[%emt 0:00:34]} dxc4 {[%emt 0:01:53]} 14. Nxc4 {[%emt 0:00:57]} Qxd1 {[%emt 0:03:34]} 15. Rfxd1 {[%emt 0:00:19]} Rfd8 {[%emt 0:00:10]} 16. Rac1 {[%emt 0:07:03][%cal Ba1c1,Bc1d1,Bd1d7,Bd7c7][%mdl 32]} Rxd1+ {[%emt 0:12:23]} 17. Rxd1 {[%emt 0:00:24]} Rc8 {[%emt 0:00:07]} ({Black should play} 17... Rd8 $14 18. Rxd8+ Nxd8) 18. Bxf6 $16 {[%emt 0:01:40]} gxf6 {[%emt 0:01:03][%mdl 4096] Endgame. KRN-KRN} 19. Rd7 $1 {[%emt 0:00:13]} b5 {[%emt 0:19:55]} 20. Nd2 {[%emt 0:08:46]} ({Of course not} 20. Rxb7 $6 bxc4 21. Rd7 (21. Rxa7 $2 c3 $19) 21... c3 $11) 20... Rb8 {[%emt 0:02:45]} 21. Nb3 {[%emt 0:00:28]} a6 {[%emt 0:07:18]} 22. g4 {[%emt 0:03:58]} Kf8 {[%emt 0:00:29]} 23. e3 {[%emt 0:02:40] White has more active pieces.} Ke8 {[%emt 0:02:19]} 24. Rc7 {[%emt 0:00:06]} Nd6 {[%emt 0:02:34]} 25. Rc6 {[%emt 0:00:44][%csl LRa6,LRd6]} Kd7 {[%emt 0:02:11]} 26. Rxa6 {[%emt 0:03:45]} Rg8 {[%emt 0:00:12]} 27. h3 {[%emt 0:02:44]} f5 {[%emt 0:01:46][%cal Bf6f5,Bf5g4][%mdl 32]} 28. Ra7+ $1 {[%emt 0:05:14]} Kc6 {[%emt 0:00:18][%cal Oc6b6]} 29. Nd4+ {[%emt 0:00:12]} Kd5 {[%emt 0:03:57][%cal Oe6e5]} 30. Rd7 $1 {[%emt 0:01:06]} (30. f3 fxg4 31. hxg4 e5) 30... fxg4 {[%emt 0:00:06]} 31. Nxb5 {[%emt 0:00:45]} gxh3+ {[%emt 0:02:32]} 32. Kh2 {[%emt 0:00:08]} Kc6 {[%emt 0:00:04]} 33. Rxd6+ {[%emt 0:00:02]} Kxb5 {[%emt 0:00:04]} 34. Kxh3 $18 {[%emt 0:00:03] KR-KR} Ra8 {[%emt 0:02:02]} 35. Rd7 {[%emt 0:05:14]} f5 {[%emt 0:04:20]} 36. Rxh7 {[%emt 0:02:33]} (36. Rd6 $18) 36... Rxa3 {[%emt 0:00:32] [#]} (36... Kc6 $1 $14) 37. Re7 $1 $16 {[%emt 0:00:21]} Ra6 {[%emt 0:02:10] [#]} 38. Kg3 {[%emt 0:07:46]} (38. Kh4 $1 $16 {[%cal Rh4g5]}) 38... Kxb4 $11 {[%emt 0:00:12]} 39. Kf4 {[%emt 0:00:03] Ke5 is the strong threat.} Kc5 $2 {[%emt 0:01:00][%mdl 8192]} (39... Kc3 $11) 40. Ke5 {[%emt 0:01:11] White mates.} Ra2 {[%emt 0:00:28]} 41. f4 {[%emt 0:30:19][%cal Bf2f4,Bf4f5][%mdl 32]} ({Stronger than} 41. Kxe6 Rxf2 42. Rf7 Re2 $11) 41... Ra8 {[%emt 0:24:36]} 42. Rxe6 {[%emt 0:00:00]} Rf8 {[%emt 0:00:11]} 43. e4 {[%emt 0:00:00]} fxe4 {[%emt 0:00:39]} 44. Kxe4 {[%emt 0:00:00]} Rh8 {[%emt 0:01:01]} 45. f5 {[%emt 0:00:00]} Rh1 {[%emt 0:02:09]} 46. Ke5 {[%emt 0:00:00]} Rf1 {[%emt 0:00:05] Weighted Error Value: White=0.11 (very precise) /Black=0.28 (precise) .  Loses game:     	---       	Black=1      Mistake:       	White=2     	Black=2      Inaccurate:     	---       	Black=1      OK:         	White=13    	Black=19     Best:        	White=4     	Black=3      Strong:       	White=2     	---} 1-0

[Event "Czech Extraliga 2023-24"]
[Site "Czech Republic"]
[Date "2024.04.06"]
[Round "9.3"]
[White "Volosin, Leon"]
[Black "Anton Guijarro, David"]
[Result "1/2-1/2"]
[ECO "D31"]
[WhiteElo "2400"]
[BlackElo "2673"]
[Annotator "TA"]
[PlyCount "99"]
[EventDate "2023.10.14"]
[EventCountry "CZE"]
[SourceTitle "playchess.com"]
[Source "ChessBase"]
[SourceQuality "1"]
[TimeControl "40/5400+30:1800+30"]

{[%evp 9,99,26,17,21,25,24,27,33,28,11,6,-30,-22,-19,-27,-29,-20,-27,-19,-16,-17,-32,-29,-31,-23,-27,-25,-26,-22,-25,-27,-27,-38,-35,-36,-36,-15,-36,-30,-33,-35,-40,-8,-16,-9,-22,-16,-130,-19,-22,-18,-32,-14,-16,-7,-29,0,0,0,-13,-8,-31,-8,-191,-187,-155,0,-35,-35,-35,-35,-47,-8,-8,-15,-8,0,0,0,0,0,0,0,0,0,0,0,0,0,0,0,0]} 1. d4 {[%emt 0:00:02]} d5 {[%emt 0:00:15]} 2. c4 {[%emt 0:00:23]} e6 {[%emt 0:00:13]} 3. Nc3 {[%emt 0:00:48]} Bb4 {[%emt 0:00:35]} 4. Nf3 {[%emt 0:02:31]} dxc4 {[%emt 0:01:17]} 5. a3 {[%emt 0:03:17]} Bxc3+ {[%emt 0:01:20]} 6. bxc3 {[%emt 0:00:08]} c5 {[%emt 0:06:44]} 7. Qa4+ {[%emt 0:04:18]} ({Much worse is} 7. dxc5 Qxd1+ 8. Kxd1 Nd7 $11) 7... Bd7 {[%emt 0:03:02]} 8. Qxc4 {[%emt 0:00:41] White has an edge.} Qa5 {[%emt 0:00:25]} 9. Bd2 {[%emt 0:04:47]} (9. Qxc5 {simplifies} Qxc5 10. dxc5 Nf6 11. Be3) 9... Nf6 {[%emt 0:02:02] Prevents e4.} 10. Ne5 {[%emt 0:09:32]} Ne4 {[%emt 0:13:17] Strongly threatening ...Nxd2.} 11. Qd3 {[%emt 0:04:45]} Nxd2 {[%emt 0:00:12]} 12. Qxd2 {[%emt 0:00:09]} O-O {[%emt 0:00:13]} 13. e3 {[%emt 0:09:41]} Rd8 {[%emt 0:01:12]} 14. Bd3 Nc6 {[%emt 0:00:35] [#] ...Nxe5 is the strong threat.} 15. Nf3 {[%emt 0:27:23]} Be8 {[%emt 0:02:32]} 16. Ra2 {[%emt 0:07:26]} Rac8 {[%emt 0:13:43]} 17. O-O {[%emt 0:01:00]} cxd4 {[%emt 0:00:17]} 18. cxd4 {[%emt 0:09:07]} Qxd2 {[%emt 0:00:23]} 19. Nxd2 {[%emt 0:00:53]} Na5 {[%emt 0:01:47]} 20. Rb1 {[%emt 0:00:50]} Rc3 {[%emt 0:01:51]} 21. Bb5 {[%emt 0:02:08]} Bxb5 {[%emt 0:03:51]} 22. Rxb5 {[%emt 0:00:30]} Rc1+ {[%emt 0:00:05]} 23. Nf1 {[%emt 0:00:09]} b6 {[%emt 0:01:08]} 24. g4 {[%emt 0:01:20]} Rdc8 {[%emt 0:03:00]} 25. Rbb2 {[%emt 0:01:16]} e5 {[%emt 0:09:21]} 26. dxe5 {[%emt 0:02:00]} Nc4 {[%emt 0:00:10][%csl LRb2,LRe5]} 27. Rc2 {[%emt 0:05:03]} Nxe5 {[%emt 0:00:15]} 28. Rxc8+ {[%emt 0:00:18]} Rxc8 $11 {[%emt 0:00:05][%mdl 4096] Endgame. KRN-KRN} 29. h3 $1 {[%emt 0:04:35]} b5 {[%emt 0:35:10]} 30. Kg2 f6 31. Nd2 Kf7 {[%emt 0:00:00]} 32. Nf3 {[%emt 0:00:10]} Rc4 {[%emt 0:00:00]} 33. Nxe5+ {[%emt 0:00:32]} fxe5 {[%emt 0:00:00] KR-KR} 34. Rd2 {[%emt 0:00:57]} Ke6 {[%emt 0:00:00] Prevents Rd7.} 35. Rd3 {[%emt 0:00:29] Wards off Rc3} a5 {[%emt 0:00:00]} 36. Rb3 $2 {[%emt 0:00:37] [#]} (36. Rd8 $11 {and White is okay.}) 36... b4 $19 {[%emt 0:00:00]} 37. axb4 {[%emt 0:00:03]} Rxb4 {[%emt 0:00:00]} ({Black should play} 37... axb4 $17 {And now ...Kd6 would win.} 38. Rd3 Rc3) 38. Rc3 {[%emt 0:00:44]} Kd6 {[%emt 0:00:00]} 39. Rc8 {[%emt 0:00:09]} a4 {[%emt 0:00:00]} 40. Kf3 {[%emt 0:00:00]} g5 41. Kg3 {The position is equal.} Kd5 {[%emt 0:10:42]} 42. h4 {[%emt 0:11:35]} h5 {[%emt 0:09:30]} 43. gxh5 {[%emt 0:02:24]} Rxh4 {[%emt 0:00:16]} 44. f3 {[%emt 0:02:07]} Rxh5 {[%emt 0:03:34]} 45. e4+ {[%emt 0:01:56]} Ke6 {[%emt 0:00:11]} 46. Ra8 {[%emt 0:00:55]} Rh4 {[%emt 0:00:16]} 47. Rxa4 {[%emt 0:00:18]} Rf4 {[%emt 0:00:07]} 48. Ra6+ {[%emt 0:00:07]} Kf7 {[%emt 0:00:03]} 49. Ra7+ {[%emt 0:01:50]} Kf6 {[%emt 0:00:04]} 50. Ra6+ {[%emt 0:00:15] Weighted Error Value: White=0.11 (very precise) /Black=0.07 (flawless) .  Loses game:     	White=1     	---        Mistake:       	---       	Black=1      Inaccurate:     	White=2     	Black=3      OK:         	White=14    	Black=23     Best:        	White=2     	Black=1      Strong:       	White=1     	---} 1/2-1/2

[Event "Czech Extraliga 2023-24"]
[Site "Czech Republic"]
[Date "2024.04.06"]
[Round "9.4"]
[White "Zilka, Stepan"]
[Black "Miesbauer, Jan"]
[Result "0-1"]
[ECO "B67"]
[WhiteElo "2579"]
[BlackElo "2392"]
[Annotator "TA"]
[PlyCount "68"]
[EventDate "2023.10.14"]
[EventCountry "CZE"]
[SourceTitle "playchess.com"]
[Source "ChessBase"]
[SourceQuality "1"]
[TimeControl "40/5400+30:1800+30"]

{[%evp 19,68,23,15,-101,-90,-89,-102,-94,-70,-68,-57,-69,-69,-130,-128,-142,-131,-150,-143,-146,-141,-154,-134,-130,-139,-165,-163,-161,-157,-195,-190,-189,-175,-280,-280,-275,-282,-256,-196,-329,-350,-347,-342,-332,-309,-368,-335,-904,-867,-793,-765]} 1. e4 {[%emt 0:00:04]} c5 {[%emt 0:00:25]} 2. Nf3 {[%emt 0:00:05]} d6 {[%emt 0:00:07]} 3. d4 {[%emt 0:00:06]} cxd4 {[%emt 0:00:07]} 4. Nxd4 {[%emt 0:00:03]} Nf6 {[%emt 0:00:07]} 5. Nc3 {[%emt 0:00:05]} Nc6 {[%emt 0:00:35]} 6. Bg5 {[%emt 0:00:13]} e6 {[%emt 0:01:03]} 7. Qd2 {[%emt 0:00:27]} a6 {[%emt 0:00:55]} 8. O-O-O {[%emt 0:01:40]} Bd7 {[%emt 0:02:00]} 9. f4 {[%emt 0:00:24]} h6 {[%emt 0:10:21]} 10. Bxf6 {[%emt 0:02:45]} Qxf6 {[%emt 0:03:54] [#]} 11. e5 {[%emt 0:02:47]} dxe5 $17 {[%emt 0:11:04]} 12. Ndb5 {[%emt 0:00:40] [#]} Qd8 {[%emt 0:01:39]} (12... Qxf4 13. Nc7+ Kd8 14. Qxf4 (14. Nxa8 Qxd2+ 15. Kxd2 Be8 $18) 14... exf4 15. Nxa8 $16) 13. Nd6+ {[%emt 0:00:41] Black is better.} Bxd6 {[%emt 0:00:24]} 14. Qxd6 {[%emt 0:00:04]} Qe7 {[%emt 0:05:00] ...Qxd6 is the strong threat.} 15. fxe5 {[%emt 0:01:45]} Rd8 {[%emt 0:01:38]} 16. Ne4 {[%emt 0:06:18] Repels Qg5+. Black keeps a firm grip on the game.} (16. Qc7 $15 Bc8 17. Qxe7+ (17. Rxd8+ Qxd8 18. Qxd8+ Kxd8 $17) 17... Kxe7 18. Re1) 16... Bc8 {[%emt 0:05:11]} 17. Qxe7+ {[%emt 0:27:44]} Kxe7 {[%emt 0:00:21]} 18. Be2 {[%emt 0:00:34]} Rxd1+ {[%emt 0:02:34]} 19. Rxd1 {[%emt 0:00:18]} Nxe5 {[%emt 0:00:14]} 20. Nd6 {[%emt 0:02:40]} Rd8 {[%emt 0:00:48]} 21. Nxc8+ {[%emt 0:00:04]} Rxc8 {[%emt 0:00:05][%mdl 4096] Endgame. KRB-KRN} 22. Rd4 {[%emt 0:05:15]} f5 {[%emt 0:07:35]} 23. Rb4 {[%emt 0:03:09]} Rc7 {[%emt 0:00:18]} 24. a4 {[%emt 0:00:08]} Nc6 {[%emt 0:02:30]} 25. Rc4 {[%emt 0:01:08]} Kd6 {[%emt 0:00:39]} 26. c3 {[%emt 0:03:43]} (26. Kd2 $142) 26... e5 $19 {[%emt 0:09:02]} 27. b4 {[%emt 0:00:36]} e4 {[%emt 0:03:06]} 28. Kd2 {[%emt 0:01:43]} g6 {[%emt 0:05:05]} 29. Ke3 {[%emt 0:04:37]} (29. b5 $142 axb5 30. axb5) 29... Ne7 {[%emt 0:01:37]} 30. Rxc7 {[%emt 0:02:49]} Nd5+ {[%emt 0:00:40]} ({Don't do} 30... Kxc7 31. Kd4 $19) 31. Kd4 {[%emt 0:00:11]} Nxc7 {[%emt 0:00:05]} 32. a5 {[%emt 0:00:21]} Ne6+ {[%emt 0:00:19]} 33. Kc4 $2 {[%emt 0:00:05]} (33. Ke3) 33... Nf4 {[%emt 0:00:48][%csl LRe2,LRg2]} 34. Bf1 {[%emt 0:00:12]} e3 {[%emt 0:00:52] Weighted Error Value: White=0.51/Black=0.07 (flawless) .  Mistake:       	White=4     	---        OK:         	White=7     	Black=9      Best:        	---       	Black=6} 0-1

[Event "Czech Extraliga 2023-24"]
[Site "Czech Republic"]
[Date "2024.04.06"]
[Round "9.4"]
[White "Krejci, Jan"]
[Black "Laznicka, Viktor"]
[Result "1-0"]
[ECO "A40"]
[WhiteElo "2530"]
[BlackElo "2597"]
[Annotator "TA"]
[PlyCount "61"]
[EventDate "2023.10.14"]
[EventCountry "CZE"]
[SourceTitle "playchess.com"]
[Source "ChessBase"]
[SourceQuality "1"]
[TimeControl "40/5400+30:1800+30"]

{[%evp 9,61,24,18,0,3,0,11,0,10,0,32,41,33,38,89,83,165,162,164,164,148,145,170,160,179,158,256,262,271,218,297,211,202,197,207,237,230,206,239,225,284,289,328,320,390,407,423,384,381,361,379,373,362,335]} 1. d4 {[%emt 0:00:03]} e6 {[%emt 0:00:54]} 2. c4 {[%emt 0:04:23]} b6 {[%emt 0:00:08]} 3. Nc3 {[%emt 0:01:13]} Bb4 {[%emt 0:00:32]} 4. e4 {[%emt 0:01:18]} Bb7 {[%emt 0:00:20]} 5. Bd3 {[%emt 0:02:46]} f5 {[%emt 0:02:46][%cal Bf7f5,Bf5e4][%mdl 32]} 6. Qh5+ {[%emt 0:00:05]} (6. exf5 $2 Bxg2 (6... Bxc3+ 7. bxc3 Bxg2 8. Kd2 $17) 7. Qh5+ Kf8 $19 (7... g6 $2 8. fxg6 Nf6 9. g7+ Ke7 10. Bg5 $18)) 6... g6 {[%emt 0:00:44]} 7. Qh3 {[%emt 0:03:08][%cal Re4f5]} Bxc3+ {[%emt 0:24:43]} 8. bxc3 {[%emt 0:00:01][%cal Re4f5] The position is equal.} fxe4 {[%emt 0:00:24]} 9. Bc2 {[%emt 0:00:57]} Qe7 {[%emt 0:04:23]} 10. Ne2 {[%emt 0:05:38]} Nf6 {[%emt 0:02:58]} 11. O-O {[%emt 0:05:42]} Nc6 {[%emt 0:23:12]} (11... Qf7 $14) 12. f3 $1 $16 {[%emt 0:05:48]} O-O-O {[%emt 0:25:58]} (12... O-O $16) 13. fxe4 $18 {[%emt 0:01:45] And now Bg5 would win.} Nh5 {[%emt 0:00:12] [#]} 14. g4 $1 $36 {[%emt 0:04:27][%mdl 2048] Keeping Black busy.} Ng7 {[%emt 0:01:52] [#]} 15. Qh6 $1 {[%emt 0:00:07] Strongly threatening Bg5.} Rdg8 {[%emt 0:00:37]} 16. Bg5 {[%emt 0:02:17][%cal Bc1g5,Bg5f6,Bf6e7][%mdl 32]} Qe8 {[%emt 0:00:30]} 17. Bf6 {[%emt 0:02:06]} Qf8 {[%emt 0:01:31]} (17... Qf7 $16 {keeps fighting.}) 18. Rf2 {[%emt 0:02:27]} Nd8 {[%emt 0:01:52][%cal Bc6d8,Bd8f7,Bf7h6][%mdl 32]} 19. Raf1 {[%emt 0:06:35]} Nf7 {[%emt 0:00:20]} 20. Be7 {[%emt 0:05:13] This pair of bishops is nice.} Nxh6 {[%emt 0:03:01]} 21. Rxf8+ {[%emt 0:02:27] Black is weak on the dark squares} (21. Bxf8 $6 Ngf5 22. Bxh6 (22. exf5 Rxf8 23. fxg6 Rxf2 $11) 22... Nxh6) 21... Ne8 {[%emt 0:00:07][%cal Bg7e8,Be8d6,Bd6f7][%mdl 32]} 22. Rxg8 {[%emt 0:00:54]} Rxg8 {[%emt 0:00:18]} 23. h3 {[%emt 0:00:29]} g5 {[%emt 0:03:01]} 24. Ng3 {[%emt 0:11:37]} Nd6 {[%emt 0:01:00]} 25. e5 {[%emt 0:03:19][%csl LRd6,LRh7]} Ndf7 {[%emt 0:00:26]} 26. Bxh7 {[%emt 0:02:12]} Rg7 {[%emt 0:00:16]} 27. Bd3 {[%emt 0:00:47]} d6 {[%emt 0:00:13]} 28. Bf6 {[%emt 0:11:56]} Rg8 {[%emt 0:00:05] White is winning.} 29. Bh7 {[%emt 0:00:21]} Re8 {[%emt 0:00:09]} 30. Bg7 {[%emt 0:00:04]} dxe5 {[%emt 0:00:19]} 31. Rf6 {[%emt 0:03:33] Black did not feel at home in the position after the opening.   Weighted Error Value: White=0.08 (flawless) /Black=0.24 (precise) .  Mistake:       	---       	Black=3      Inaccurate:     	---       	Black=2      OK:         	White=13    	Black=10     Best:        	White=2     	Black=2      Strong:       	White=3     	---} ({Don't play} 31. dxe5 Kd8 32. Nh5 (32. Rf6 Ke7 $18) 32... Ke7 $18) (31. Bxe5 Nxe5 32. dxe5 Rh8 $18) 1-0

[Event "Czech Extraliga 2023-24"]
[Site "Czech Republic"]
[Date "2024.04.06"]
[Round "9.4"]
[White "Vykouk, Jan"]
[Black "Vlasak, Lukas"]
[Result "1/2-1/2"]
[ECO "A13"]
[WhiteElo "2509"]
[BlackElo "2464"]
[Annotator "TA"]
[PlyCount "55"]
[EventDate "2023.10.14"]
[EventCountry "CZE"]
[SourceTitle "playchess.com"]
[Source "ChessBase"]
[SourceQuality "1"]
[TimeControl "40/5400+30:1800+30"]

{[%evp 9,55,3,14,13,16,2,5,0,0,0,13,7,1,0,0,-12,0,-8,0,-5,0,0,12,0,5,4,6,6,10,10,6,18,11,0,0,0,5,12,12,22,14,8,3,12,14,14,11,0]} 1. c4 {[%emt 0:00:06]} e6 {[%emt 0:00:22]} 2. Nf3 {[%emt 0:00:17]} d5 {[%emt 0:00:17]} 3. g3 {[%emt 0:00:29]} Nf6 {[%emt 0:00:46]} 4. Bg2 {[%emt 0:00:23]} dxc4 {[%emt 0:01:10]} 5. Qa4+ {[%emt 0:00:31]} Bd7 {[%emt 0:01:32] The position is equal.} 6. Qxc4 {[%emt 0:00:23]} c5 {[%emt 0:00:25]} 7. Ne5 {[%emt 0:10:07]} Qc8 {[%emt 0:00:51]} 8. Nxd7 {[%emt 0:01:04]} Qxd7 {[%emt 0:00:51]} 9. b3 {[%emt 0:02:44]} Nc6 {[%emt 0:00:13]} 10. Bb2 {[%emt 0:00:12]} Be7 {[%emt 0:00:37]} 11. O-O {[%emt 0:00:41]} Rc8 {[%emt 0:00:39]} 12. d3 {[%emt 0:01:51]} O-O {[%emt 0:00:48]} 13. Nd2 {[%emt 0:01:09]} Rfd8 {[%emt 0:08:32]} 14. Rfe1 {[%emt 0:04:53]} b6 {[%emt 0:00:36]} 15. a3 {[%emt 0:09:26]} Ne8 {[%emt 0:06:47]} 16. Rac1 {[%emt 0:08:54][%cal Ob3b4]} Bf6 {[%emt 0:03:19]} 17. Bxf6 {[%emt 0:02:02]} Nxf6 {[%emt 0:00:15]} 18. b4 {[%emt 0:06:50]} Nd4 {[%emt 0:05:54][%cal Bc6d4,Bd4b5,Bb5d6,Bd6b7,Bb7a5][%mdl 32] [#] aiming for ...cxb4.} 19. e3 {[%emt 0:01:29]} Nb5 {[%emt 0:04:16] A dynamic duo of knights.} 20. Nb1 {[%emt 0:06:01]} h5 {[%emt 0:10:26]} (20... Qxd3 $2 {too greedy.} 21. Qxd3 Rxd3 22. Bf1 $18) 21. a4 {[%emt 0:05:59]} Nd6 {[%emt 0:06:38]} 22. Qb3 {[%emt 0:00:07]} cxb4 {[%emt 0:01:59]} 23. Qxb4 {[%emt 0:00:08]} Nb7 {[%emt 0:10:47]} 24. d4 {[%emt 0:00:59] Prevents Nc5} Na5 {[%emt 0:02:13]} 25. Nd2 {[%emt 0:03:08]} Rxc1 {[%emt 0:02:46]} 26. Rxc1 {[%emt 0:00:12]} Rc8 {[%emt 0:00:11]} 27. Rxc8+ {[%emt 0:03:08]} Qxc8 {[%emt 0:01:09]} 28. Qb2 {[%emt 0:00:24] An uneventful encounter.   Weighted Error Value: White=0.04 (flawless) /Black=0.03 (flawless) .  OK:         	White=6     	Black=7} 1/2-1/2